bitfinex/quotes_SOLUSD_20220211
["timestamp","ask_amount","ask_price","bid_price","bid_amount"]
[1644546939110,4.55,104.91,104.81,59.26432989]
[1644546939311,0.04831995,104.9,104.81,23.724]
[1644546939828,23.51091995,104.9,104.81,23.724]
[1644546940027,0.04831995,104.89,104.81,23.724]
[1644546940226,0.04831995,104.89,104.81,69.59039431]
[1644546940427,35.68904252,104.89,104.81,83.90369431]
[1644546940628,0.04831995,104.88,104.81,83.90369431]
[1644546940828,9.36231995,104.88,104.81,77.90369431]
[1644546941029,32.81651995,104.88,104.81,79.90586197]
[1644546941229,32.81651995,104.88,104.81,85.65586197]
[1644546942031,32.81651995,104.88,104.81,90.42386197]
[1644546942631,32.81651995,104.88,104.81,90.67386197]
[1644546942832,32.81651995,104.88,104.81,95.80386197]
[1644546943033,32.81651995,104.88,104.81,101.80386197]
[1644546944436,32.81651995,104.88,104.81,61.93746766]
[1644546944634,32.81651995,104.88,104.81,25.6933]
[1644546945043,32.81651995,104.88,104.8,14.315]
[1644546945235,4.553,104.87,104.79,0.024]
[1644546945440,37.85618744,104.85,104.78,0.024]
[1644546945641,42.40918744,104.85,104.78,0.024]
[1644546946736,37.85618744,104.85,104.78,0.024]
[1644546947136,37.85618744,104.85,104.78,1.77616766]
[1644546947338,37.85618744,104.85,104.79,0.024]
[1644546949842,42.40718744,104.85,104.79,0.024]
[1644546950442,42.40718744,104.85,104.78,0.024]
[1644546950841,56.72668744,104.85,104.78,0.024]
[1644546951040,70.08790898,104.85,104.77,0.024]
[1644546951839,56.72668744,104.85,104.77,0.024]
[1644546952640,62.72668744,104.85,104.77,0.024]
[1644546955346,11.13,104.84,104.77,0.024]
[1644546955544,14.3254,104.82,104.77,0.024]
[1644546955746,4.55,104.81,104.76,3.6640218]
[1644546955944,71.6143,104.84,104.77,0.024]
[1644546956147,23.863,104.84,104.76,3.6640218]
[1644546956345,2.23122154,104.83,104.77,0.024]
[1644546956545,15.678,104.82,104.77,0.024]
[1644546956746,44.39469056,104.81,104.76,3.6640218]
[1644546956946,14.3292,104.79,104.76,3.6640218]
[1644546957750,49.0,104.78,104.71,0.024]
[1644546957947,76.9149,104.78,104.71,0.024]
[1644546958147,76.9149,104.78,104.69,0.024]
[1644546958348,37.987137,104.77,104.69,0.024]
[1644546958548,52.318937,104.77,104.69,0.024]
[1644546958748,43.78993791,104.75,104.69,1.76808528]
[1644546958950,43.78993791,104.75,104.7,0.024]
[1644546959148,43.78993791,104.75,104.69,6.54108528]
[1644546959348,43.78993791,104.75,104.69,5.047]
[1644546960351,43.78993791,104.75,104.69,0.024]
[1644546962451,62.67493791,104.75,104.69,0.024]
[1644546962650,22.5143,104.74,104.67,0.274]
[1644546962852,22.5143,104.74,104.67,0.25]
[1644546963052,22.5143,104.74,104.68,0.024]
[1644546963251,45.15312476,104.73,104.67,0.024]
[1644546963450,46.45370556,104.71,104.65,0.024]
[1644546964250,46.45370556,104.71,104.65,1.76808528]
[1644546965751,46.45370556,104.71,104.65,2.01808528]
[1644546966352,46.45370556,104.71,104.65,1.76808528]
[1644546966554,52.45370556,104.71,104.65,0.024]
[1644546967454,66.79310556,104.71,104.65,0.024]
[1644546968053,45.902564,104.69,104.65,0.024]
[1644546968258,45.902564,104.69,104.64,4.775]
[1644546968954,45.902564,104.69,104.64,5.025]
[1644546969155,45.902564,104.69,104.64,6.76908528]
[1644546969453,45.902564,104.69,104.64,5.025]
[1644546969655,46.8636,104.72,104.64,5.025]
[1644546969954,4.582,104.78,104.64,5.025]
[1644546969955,4.582,104.78,104.65,4.8]
[1644546970154,46.9606,104.77,104.65,25.43091414]
[1644546970358,46.9606,104.77,104.66,1.74408528]
[1644546970555,46.9606,104.77,104.67,14.928]
[1644546970858,44.92091617,104.76,104.68,42.40306501]
[1644546971257,50.92091617,104.76,104.68,42.65306501]
[1644546971954,50.92091617,104.76,104.69,14.33]
[1644546972157,50.92091617,104.76,104.7,0.024]
[1644546972359,55.69491617,104.76,104.7,0.024]
[1644546972756,23.4594,104.75,104.69,0.024]
[1644546972964,4.774,104.74,104.69,0.024]
[1644546973156,4.774,104.74,104.67,0.024]
[1644546973484,42.50294024,104.73,104.67,0.024]
[1644546974059,4.775,104.72,104.67,0.024]
[1644546974257,4.775,104.72,104.66,0.024]
[1644546974457,23.2581,104.72,104.64,0.024]
[1644546974657,36.5951,104.72,104.64,0.024]
[1644546974858,35.60285413,104.71,104.64,0.024]
[1644546975059,4.776,104.7,104.64,0.024]
[1644546975259,4.776,104.7,104.63,0.024]
[1644546976066,42.60720639,104.69,104.63,0.024]
[1644546976660,42.60720639,104.69,104.61,0.024]
[1644546977761,56.94930639,104.69,104.61,0.024]
[1644546978062,56.94930639,104.69,104.61,4.301]
[1644546978262,56.94930639,104.69,104.62,0.024]
[1644546978661,68.07930639,104.69,104.62,0.024]
[1644546979661,97.22480639,104.69,104.59,4.801]
[1644546979862,97.22480639,104.69,104.6,0.024]
[1644546980465,4.777,104.68,104.6,0.024]
[1644546980667,14.3454,104.67,104.6,0.024]
[1644546980865,4.777,104.66,104.6,0.024]
[1644546981265,11.13,104.67,104.58,0.024]
[1644546981468,4.779,104.65,104.56,0.024]
[1644546981665,34.37556715,104.64,104.56,0.024]
[1644546982066,34.37556715,104.64,104.56,1.76808528]
[1644546982266,34.37556715,104.64,104.57,7.33077856]
[1644546982667,34.37556715,104.64,104.57,23.67066384]
[1644546982867,34.37556715,104.64,104.57,16.36388528]
[1644546983272,34.37556715,104.64,104.57,0.024]
[1644546985672,40.37556715,104.64,104.57,0.024]
[1644546985875,40.37556715,104.64,104.57,14.3709]
[1644546986073,40.37556715,104.64,104.58,13.11773511]
[1644546986274,40.37556715,104.64,104.58,13.39173511]
[1644546987373,40.37556715,104.64,104.58,0.274]
[1644546987573,40.37556715,104.64,104.58,19.1488]
[1644546987774,40.37556715,104.64,104.58,4.803]
[1644546987980,40.37556715,104.64,104.58,0.024]
[1644546988176,40.37556715,104.64,104.58,0.25]
[1644546988376,40.37556715,104.64,104.57,0.024]
[1644546988975,54.72426715,104.64,104.57,0.024]
[1644546989176,4.779,104.63,104.57,0.024]
[1644546989375,4.779,104.63,104.55,0.024]
[1644546989575,42.90637324,104.62,104.55,0.024]
[1644546989976,57.25847324,104.62,104.55,0.024]
[1644546990377,57.25847324,104.62,104.55,17.99427678]
[1644546990576,42.90637324,104.62,104.56,0.024]
[1644546990979,42.90637324,104.62,104.56,1.761737]
[1644546991178,42.90637324,104.62,104.56,2.011737]
[1644546991378,42.90637324,104.62,104.57,37.00512092]
[1644546991577,42.90637324,104.62,104.57,37.02912092]
[1644546991778,42.90637324,104.62,104.57,0.024]
[1644546992380,24.7535,104.64,104.57,1.761737]
[1644546992578,4.78,104.66,104.57,1.761737]
[1644546992778,11.13,104.69,104.58,0.024]
[1644546992978,6.0,104.66,104.59,11.13]
[1644546993178,53.3558,104.71,104.6,0.024]
[1644546993378,41.32087974,104.7,104.6,1.761737]
[1644546993581,4.777,104.69,104.61,0.024]
[1644546993778,29.6949,104.69,104.61,0.024]
[1644546994579,45.42332142,104.68,104.61,0.024]
[1644546994779,59.76632142,104.68,104.61,0.024]
[1644546996082,59.76632142,104.68,104.61,16.103637]
[1644546996279,59.76632142,104.68,104.62,0.024]
[1644546996979,51.42332142,104.68,104.62,44.30765271]
[1644546997180,45.42332142,104.68,104.62,44.30765271]
[1644546997681,45.42332142,104.68,104.62,0.024]
[1644546998481,45.42332142,104.68,104.62,14.3647]
[1644546998684,45.42332142,104.68,104.62,16.102437]
[1644546998883,45.42332142,104.68,104.62,59.50543888]
[1644546999081,45.42332142,104.68,104.62,59.48143888]
[1644546999283,45.42332142,104.68,104.62,59.50543888]
[1644546999687,28.4379,104.71,104.62,59.50543888]
[1644546999889,29.6609,104.71,104.62,59.50543888]
[1644547000090,29.6609,104.71,104.62,76.63543888]
[1644547000689,40.5289734,104.7,104.62,70.63543888]
[1644547000890,40.5289734,104.7,104.63,4.777]
[1644547001092,40.5289734,104.7,104.64,26.15939582]
[1644547001296,24.2646,104.72,104.64,28.17113282]
[1644547001494,24.2646,104.72,104.65,1.761737]
[1644547001691,29.698,104.76,104.65,12.891737]
[1644547001990,54.6343,104.76,104.66,49.508537]
[1644547002190,47.16068119,104.75,104.67,50.90706137]
[1644547002392,47.16068119,104.75,104.68,0.024]
[1644547003814,67.49408119,104.75,104.68,0.024]
[1644547006214,69.72530273,104.75,104.68,0.024]
[1644547006416,14.3369,104.73,104.67,0.024]
[1644547006616,4.775,104.72,104.66,0.024]
[1644547006814,4.775,104.72,104.67,0.024]
[1644547007016,44.24009701,104.71,104.66,0.024]
[1644547008116,4.776,104.73,104.66,0.024]
[1644547008316,23.5227,104.74,104.66,0.024]
[1644547008516,4.775,104.73,104.66,0.024]
[1644547008718,4.775,104.73,104.66,14.3592]
[1644547008920,4.775,104.73,104.67,0.024]
[1644547009118,36.12078483,104.72,104.67,0.024]
[1644547009720,36.12078483,104.72,104.66,14.3592]
[1644547015724,42.12078483,104.72,104.66,14.3592]
[1644547015924,36.12078483,104.72,104.66,14.3592]
[1644547016126,19.1109,104.73,104.67,34.95917783]
[1644547016426,1.33253801,104.75,104.67,49.56737783]
[1644547016628,1.33253801,104.77,104.68,12.891737]
[1644547016828,1.33253801,104.77,104.68,19.141737]
[1644547017026,1.33253801,104.78,104.69,1.737737]
[1644547017332,46.50068465,104.77,104.69,93.25305687]
[1644547017728,46.50068465,104.77,104.7,16.065837]
[1644547017929,46.50068465,104.77,104.71,39.73217783]
[1644547018128,46.50068465,104.77,104.71,36.69691483]
[1644547018326,46.50068465,104.77,104.71,42.94691483]
[1644547019727,46.50068465,104.77,104.72,14.3261]
[1644547020129,46.50068465,104.77,104.72,14.5761]
[1644547020831,1.33253801,104.79,104.72,14.5761]
[1644547021229,44.92443801,104.8,104.72,14.5761]
[1644547021633,1.33253801,104.79,104.72,14.5761]
[1644547021829,1.33253801,104.79,104.73,20.01621987]
[1644547022030,72.70331342,104.8,104.73,34.34121987]
[1644547022262,49.43771342,104.8,104.73,34.34121987]
[1644547022833,49.43771342,104.8,104.73,14.325]
[1644547023033,1.33253801,104.79,104.72,14.3276]
[1644547023232,6.10453801,104.79,104.72,14.3276]
[1644547023433,6.10453801,104.79,104.71,24.6224]
[1644547023836,1.33253801,104.78,104.71,24.6224]
[1644547024033,4.773,104.77,104.71,41.98283935]
[1644547024237,37.39867861,104.76,104.71,17.36043935]
[1644547024434,37.39867861,104.76,104.7,14.33]
[1644547024635,15.66223801,104.78,104.7,14.58]
[1644547024838,14.3297,104.78,104.7,16.317737]
[1644547025640,36.01239567,104.77,104.71,44.21881227]
[1644547025842,36.01239567,104.77,104.71,58.79701227]
[1644547026243,36.01239567,104.77,104.71,14.5782]
[1644547027543,36.01239567,104.77,104.71,14.3282]
[1644547027745,50.34249567,104.77,104.7,38.8814]
[1644547027946,62.44803368,104.77,104.7,38.8814]
[1644547028144,57.67503368,104.77,104.7,38.8814]
[1644547028347,21.66263801,104.77,104.7,38.8814]
[1644547028645,1.33253801,104.77,104.7,51.999137]
[1644547028845,6.10553801,104.79,104.7,57.999137]
[1644547029045,1.33253801,104.79,104.71,4.773]
[1644547029247,1.33253801,104.79,104.73,14.3246]
[1644547029446,1.33253801,104.79,104.74,17.7024839]
[1644547029861,36.81247292,104.8,104.74,17.7024839]
[1644547030764,36.81247292,104.8,104.74,32.0273839]
[1644547034267,57.13837292,104.8,104.74,32.0273839]
[1644547035269,57.13837292,104.8,104.74,14.3249]
[1644547035469,57.13837292,104.8,104.73,14.3262]
[1644547036170,57.13837292,104.8,104.74,47.18421112]
[1644547036371,7.33253801,104.8,104.74,47.18421112]
[1644547036571,7.33253801,104.8,104.74,61.50861112]
[1644547036770,1.33253801,104.81,104.74,61.50861112]
[1644547037172,1.33253801,104.81,104.74,63.24634812]
[1644547037573,1.33253801,104.82,104.74,74.62634812]
[1644547037772,1.33253801,104.83,104.77,14.3191]
[1644547038172,1.33253801,104.83,104.77,16.306837]
[1644547038372,1.33253801,104.83,104.78,7.79118658]
[1644547038772,1.33253801,104.84,104.78,8.04118658]
[1644547038972,48.76088176,104.84,104.79,14.318]
[1644547039172,48.76088176,104.84,104.78,7.79118658]
[1644547039373,1.33253801,104.83,104.78,7.79118658]
[1644547039675,1.33253801,104.83,104.77,24.1656]
[1644547039871,1.33253801,104.82,104.77,24.1656]
[1644547040074,1.33253801,104.82,104.77,38.4868]
[1644547040271,1.33253801,104.82,104.77,24.1656]
[1644547040476,41.89312464,104.81,104.77,24.1656]
[1644547040673,41.89312464,104.81,104.75,40.26947019]
[1644547040875,41.89312464,104.81,104.75,46.51947019]
[1644547041276,41.89312464,104.81,104.75,40.51947019]
[1644547041674,41.89312464,104.81,104.75,46.51947019]
[1644547041875,41.89312464,104.81,104.76,14.3226]
[1644547042775,43.22566265,104.81,104.76,14.3226]
[1644547048280,1.33253801,104.8,104.76,14.3226]
[1644547055386,1.33253801,104.8,104.77,14.70592751]
[1644547055587,1.33253801,104.8,104.77,29.02722751]
[1644547055786,1.33253801,104.81,104.78,6.06439994]
[1644547056985,1.33253801,104.81,104.78,20.38449994]
[1644547057188,1.33253801,104.82,104.78,22.12223694]
[1644547057386,1.33253801,104.82,104.78,28.37223694]
[1644547057587,1.33253801,104.83,104.78,22.37223694]
[1644547057790,1.33253801,104.83,104.78,33.14123694]
[1644547057990,1.33253801,104.83,104.78,55.75083694]
[1644547058193,1.33253801,104.82,104.78,49.75083694]
[1644547058390,1.33253801,104.82,104.78,45.23183694]
[1644547060092,1.33253801,104.82,104.78,51.23183694]
[1644547060893,1.33253801,104.82,104.78,56.00083694]
[1644547061092,1.33253801,104.83,104.78,50.00083694]
[1644547061692,1.33253801,104.84,104.79,11.13]
[1644547061894,1.33253801,104.85,104.8,54.58417019]
[1644547062094,1.33253801,104.85,104.81,11.13]
[1644547062294,1.33253801,104.86,104.82,14.70592751]
[1644547062794,1.33253801,104.86,104.82,20.95592751]
[1644547062996,1.33253801,104.86,104.82,37.00606451]
[1644547063195,1.33253801,104.86,104.82,48.13606451]
[1644547064296,1.33253801,104.86,104.82,42.13606451]
[1644547064796,1.33253801,104.87,104.82,48.13606451]
[1644547065395,1.33253801,104.87,104.82,42.13606451]
[1644547065595,1.33253801,104.87,104.82,48.13606451]
[1644547066197,1.33253801,104.87,104.82,27.180137]
[1644547066396,1.33253801,104.87,104.82,33.430137]
[1644547066598,1.33253801,104.87,104.82,31.6924]
[1644547066998,1.33253801,104.87,104.82,25.6924]
[1644547067197,45.65252243,104.86,104.82,25.6924]
[1644547067600,44.31998442,104.86,104.82,25.6924]
[1644547068501,1.33253801,104.87,104.82,25.6924]
[1644547069601,45.43673189,104.86,104.82,25.6924]
[1644547070302,45.43673189,104.86,104.82,25.4424]
[1644547070501,45.43673189,104.86,104.82,11.13]
[1644547070703,46.7692699,104.86,104.79,11.13]
[1644547071007,51.5382699,104.86,104.77,34.0388]
[1644547071200,46.7692699,104.86,104.78,29.031]
[1644547071401,46.7692699,104.86,104.78,70.02609674]
[1644547071800,46.7692699,104.86,104.79,14.3185]
[1644547072002,51.5382699,104.86,104.79,14.3185]
[1644547072601,57.5382699,104.86,104.79,14.5685]
[1644547072800,1.33253801,104.85,104.79,14.3185]
[1644547073003,41.97188831,104.84,104.79,14.3185]
[1644547074107,43.30442632,104.84,104.79,14.3185]
[1644547074307,43.30442632,104.84,104.79,14.5685]
[1644547074507,41.97188831,104.84,104.79,14.3185]
[1644547075010,41.97188831,104.84,104.79,14.5685]
[1644547075209,41.97188831,104.84,104.79,14.3185]
[1644547075610,43.30442632,104.84,104.79,14.3185]
[1644547076611,41.97188831,104.84,104.79,14.5685]
[1644547078714,43.30442632,104.84,104.79,14.5685]
[1644547079412,49.30442632,104.84,104.79,14.5685]
[1644547079612,43.30442632,104.84,104.79,14.3185]
[1644547081318,43.30442632,104.84,104.79,14.5685]
[1644547085617,1.33253801,104.83,104.79,14.5685]
[1644547086838,45.91452723,104.82,104.79,14.5685]
[1644547087038,45.91452723,104.82,104.8,20.38159994]
[1644547087439,1.33253801,104.83,104.8,20.38159994]
[1644547087839,1.33253801,104.83,104.8,20.63159994]
[1644547088341,41.04831945,104.83,104.8,20.63159994]
[1644547088640,41.04831945,104.83,104.8,20.38159994]
[1644547088841,41.04831945,104.83,104.8,20.63159994]
[1644547089342,41.04831945,104.83,104.8,20.38159994]
[1644547089940,41.04831945,104.83,104.8,6.06439994]
[1644547090842,1.33253801,104.82,104.8,6.06439994]
[1644547091844,39.25521659,104.81,104.78,14.3195]
[1644547092241,39.25521659,104.81,104.79,6.06439994]
[1644547093442,1.33253801,104.82,104.79,6.06439994]
[1644547093648,1.33253801,104.82,104.79,20.38279994]
[1644547093846,1.33253801,104.83,104.79,20.63279994]
[1644547094047,1.33253801,104.84,104.79,20.38279994]
[1644547094246,1.33253801,104.83,104.79,20.38279994]
[1644547094449,42.88222586,104.83,104.79,20.38279994]
[1644547095048,42.88222586,104.83,104.79,20.63279994]
[1644547095950,42.88222586,104.83,104.79,25.40179994]
[1644547097652,1.33253801,104.82,104.79,25.40179994]
[1644547098955,1.33253801,104.82,104.79,36.53179994]
[1644547099154,42.88222586,104.83,104.79,36.53179994]
[1644547100561,1.33253801,104.82,104.79,36.53179994]
[1644547101257,1.33253801,104.82,104.79,38.26953694]
[1644547102060,1.33253801,104.82,104.79,33.50053694]
[1644547103259,1.33253801,104.82,104.79,33.25053694]
[1644547103461,1.33253801,104.82,104.79,31.51279994]
[1644547103861,1.33253801,104.82,104.79,37.76279994]
[1644547104061,1.33253801,104.82,104.79,31.51279994]
[1644547104264,38.19390202,104.82,104.79,31.51279994]
[1644547104462,1.33253801,104.81,104.79,31.51279994]
[1644547105266,1.33253801,104.82,104.79,31.51279994]
[1644547105463,1.33253801,104.82,104.79,31.76279994]
[1644547105764,1.33253801,104.83,104.79,31.76279994]
[1644547106165,1.33253801,104.82,104.79,31.76279994]
[1644547106365,1.33253801,104.82,104.79,31.51279994]
[1644547108264,1.33253801,104.82,104.79,31.76279994]
[1644547109966,1.33253801,104.82,104.79,31.51279994]
[1644547110167,1.33253801,104.82,104.79,31.76279994]
[1644547113272,1.33253801,104.82,104.79,33.50053694]
[1644547115077,1.33253801,104.83,104.8,11.52507306]
[1644547115277,1.33253801,104.83,104.81,5.50836592]
[1644547115679,1.33253801,104.83,104.81,5.75836592]
[1644547116479,1.33253801,104.83,104.81,5.50836592]
[1644547116678,29.1035,104.85,104.81,5.50836592]
[1644547116679,1.33253801,104.82,104.81,5.50836592]
[1644547117280,1.33253801,104.82,104.81,5.75836592]
[1644547117482,1.33253801,104.83,104.81,5.75836592]
[1644547117680,1.33253801,104.83,104.81,20.07446592]
[1644547118080,0.04831995,104.85,104.81,21.81220292]
[1644547118280,0.04831995,104.85,104.82,15.899]
[1644547118281,1.3499117,104.85,104.82,15.899]
[1644547118483,1.3499117,104.87,104.82,15.899]
[1644547118684,1.3499117,104.87,104.83,1.737737]
[1644547118887,1.3499117,104.88,104.85,14.3089]
[1644547119084,1.3499117,104.88,104.86,6.06439994]
[1644547119284,1.3499117,104.87,104.86,6.06439994]
[1644547119484,1.3499117,104.88,104.86,6.06439994]
[1644547119797,1.3499117,104.88,104.86,6.31439994]
[1644547119999,1.3499117,104.88,104.86,20.62319994]
[1644547120300,1.3499117,104.89,104.86,20.62319994]
[1644547120497,1.3499117,104.89,104.86,20.37319994]
[1644547121297,1.39823165,104.9,104.86,20.62319994]
[1644547121694,7.39823165,104.9,104.86,20.62319994]
[1644547121895,1.39823165,104.9,104.86,20.62319994]
[1644547122096,55.73822112,104.9,104.86,20.62319994]
[1644547122697,7.39823165,104.9,104.86,20.62319994]
[1644547124497,6.04831995,104.9,104.86,20.62319994]
[1644547124697,0.04831995,104.9,104.86,20.62319994]
[1644547125299,0.04831995,104.9,104.86,20.37319994]
[1644547125498,0.04831995,104.9,104.86,6.06439994]
[1644547125699,1.39823165,104.9,104.86,6.06439994]
[1644547127509,0.04831995,104.9,104.86,6.31439994]
[1644547127910,0.04831995,104.9,104.86,8.05213694]
[1644547128604,0.04831995,104.9,104.86,22.36063694]
[1644547128804,0.04831995,104.9,104.86,20.62289994]
[1644547129208,0.04831995,104.9,104.86,22.48317374]
[1644547130511,0.04831995,104.9,104.86,33.040749]
[1644547130710,0.04831995,104.9,104.86,43.807749]
[1644547130910,0.04831995,104.9,104.86,37.807749]
[1644547131110,0.04831995,104.9,104.86,27.25017374]
[1644547131911,0.04831995,104.9,104.86,28.48317374]
[1644547132112,0.04831995,104.9,104.86,22.48317374]
[1644547132310,0.04831995,104.91,104.86,22.48317374]
[1644547132510,0.04831995,104.91,104.86,47.72741074]
[1644547132711,29.5028538,104.92,104.86,47.72741074]
[1644547132911,0.04831995,104.91,104.86,47.72741074]
[1644547133115,76.63881059,104.92,104.86,82.5989524]
[1644547133310,77.98872229,104.92,104.86,45.98967374]
[1644547133512,30.8527655,104.92,104.86,45.98967374]
[1644547134012,29.5028538,104.92,104.86,45.98967374]
[1644547134218,6.5271538,104.92,104.86,47.72741074]
[1644547134412,6.5271538,104.92,104.86,52.49341074]
[1644547134611,0.5271538,104.92,104.87,54.52862839]
[1644547134812,0.47883385,104.92,104.87,54.77862839]
[1644547136019,0.47883385,104.92,104.87,14.556]
[1644547140127,0.47883385,104.92,104.88,11.85384838]
[1644547140325,0.47883385,104.92,104.88,26.40934838]
[1644547140526,0.47883385,104.92,104.88,43.53934838]
[1644547140725,0.47883385,104.92,104.89,1.737737]
[1644547140930,0.47883385,104.92,104.9,6.06439994]
[1644547141429,0.47883385,104.92,104.9,22.35403694]
[1644547141726,0.47883385,104.92,104.9,33.11903694]
[1644547142027,0.47883385,104.92,104.91,23.9537]
[1644547142431,0.47883385,104.92,104.9,19.18213694]
[1644547142630,0.47883385,104.92,104.9,17.19439994]
[1644547142830,0.47883385,104.92,104.9,6.06439994]
[1644547144731,37.63996719,104.92,104.9,6.06439994]
[1644547145147,37.63996719,104.92,104.9,3.03219997]
[1644547145334,38.98987889,104.92,104.87,11.13]
[1644547145534,38.98987889,104.92,104.87,11.38]
[1644547146963,38.98987889,104.92,104.87,0.25]
[1644547147357,1.3499117,104.91,104.86,23.832]
[1644547147559,1.3499117,104.9,104.86,23.832]
[1644547147757,1.3499117,104.9,104.85,4.766]
[1644547147959,15.6617117,104.9,104.85,4.766]
[1644547148159,42.46343508,104.88,104.85,4.766]
[1644547149460,43.81334678,104.88,104.85,4.766]
[1644547149659,43.81334678,104.88,104.83,8.481]
[1644547149861,43.86166673,104.88,104.83,8.481]
[1644547150561,1.3499117,104.87,104.83,8.481]
[1644547150763,14.3179,104.86,104.83,8.481]
[1644547150961,4.768,104.85,104.83,8.481]
[1644547151164,39.59109584,104.84,104.83,8.481]
[1644547153263,15.6671117,104.87,104.83,8.481]
[1644547154262,37.425727,104.86,104.83,8.481]
[1644547154465,51.744227,104.86,104.83,8.481]
[1644547154664,38.0,104.85,104.78,1.737737]
[1644547154965,42.769,104.85,104.77,11.13]
[1644547155166,1.3499117,104.85,104.77,11.13]
[1644547155366,29.5846117,104.86,104.78,1.737737]
[1644547155664,38.15767075,104.85,104.78,1.737737]
[1644547155865,4.769,104.84,104.78,1.737737]
[1644547156266,4.769,104.84,104.78,1.987737]
[1644547156865,4.769,104.84,104.79,1.737737]
[1644547157064,38.15767075,104.85,104.79,1.737737]
[1644547157265,38.15767075,104.85,104.79,1.987737]
[1644547157565,38.15767075,104.85,104.79,1.737737]
[1644547157865,38.15767075,104.85,104.78,4.769]
[1644547157866,4.769,104.84,104.78,4.769]
[1644547158064,4.769,104.84,104.78,5.019]
[1644547158265,4.769,104.84,104.78,6.756737]
[1644547159068,4.769,104.84,104.78,1.987737]
[1644547160067,38.15767075,104.85,104.78,1.987737]
[1644547160266,44.15767075,104.85,104.78,1.987737]
[1644547160466,44.15767075,104.85,104.78,13.117737]
[1644547161571,48.92667075,104.85,104.78,13.117737]
[1644547161768,63.24657075,104.85,104.78,12.867737]
[1644547162170,63.24657075,104.85,104.76,11.13]
[1644547162770,64.59648245,104.85,104.76,11.13]
[1644547162968,63.24657075,104.85,104.76,12.867737]
[1644547163169,74.15257075,104.85,104.76,13.117737]
[1644547163570,69.38357075,104.85,104.76,13.117737]
[1644547164572,4.769,104.84,104.76,13.117737]
[1644547164771,19.0911,104.84,104.76,13.117737]
[1644547165780,19.0911,104.84,104.76,17.886737]
[1644547168674,25.0911,104.84,104.76,17.886737]
[1644547169674,20.3221,104.84,104.76,17.886737]
[1644547169875,6.0,104.84,104.76,32.206337]
[1644547170075,6.0,104.84,104.76,38.206337]
[1644547170576,38.15767075,104.85,104.76,38.206337]
[1644547170977,44.15767075,104.85,104.76,38.206337]
[1644547171376,38.15767075,104.85,104.76,38.206337]
[1644547173477,38.15767075,104.85,104.76,31.956337]
[1644547173678,58.47707075,104.85,104.76,17.636737]
[1644547174782,58.47707075,104.85,104.76,71.61943675]
[1644547174983,44.15767075,104.85,104.76,85.93913675]
[1644547175183,44.15767075,104.85,104.76,101.59904243]
[1644547175785,44.15767075,104.85,104.76,86.18913675]
[1644547176987,44.15767075,104.85,104.77,24.2946]
[1644547177185,44.15767075,104.85,104.78,15.899]
[1644547177390,44.15767075,104.85,104.78,17.89204596]
[1644547177588,44.15767075,104.85,104.79,1.74304596]
[1644547177789,44.15767075,104.85,104.79,1.99304596]
[1644547179288,1.3499117,104.86,104.8,19.86574391]
[1644547179497,25.96973165,104.88,104.8,42.52094391]
[1644547179692,1.39823165,104.88,104.81,1.74304596]
[1644547179911,1.39823165,104.88,104.81,19.12304596]
[1644547180311,47.11424093,104.87,104.81,19.12304596]
[1644547180511,47.11424093,104.87,104.81,17.13]
[1644547180712,47.11424093,104.87,104.81,31.6934]
[1644547180914,47.11424093,104.87,104.81,25.6934]
[1644547181721,47.11424093,104.87,104.81,30.4624]
[1644547182017,47.11424093,104.87,104.81,36.4624]
[1644547182214,47.11424093,104.87,104.81,30.4624]
[1644547185417,47.11424093,104.87,104.81,36.2124]
[1644547185619,47.11424093,104.87,104.81,15.899]
[1644547185818,48.46415263,104.87,104.81,15.899]
[1644547186018,47.11424093,104.87,104.81,15.899]
[1644547186419,48.46415263,104.87,104.81,11.13]
[1644547186618,47.11424093,104.87,104.81,11.13]
[1644547186819,47.11424093,104.87,104.81,11.38]
[1644547187019,47.11424093,104.87,104.81,35.0326]
[1644547187221,47.11424093,104.87,104.81,49.3464]
[1644547188222,46.61424093,104.87,104.81,49.3464]
[1644547190726,52.61424093,104.87,104.81,49.3464]
[1644547190925,52.61424093,104.87,104.81,34.7826]
[1644547190926,46.61424093,104.87,104.81,34.7826]